[Event "*** SCC Grand Prix: Titled Tuesday Blitz"]
[Site "Chess.com"]
[Date "2020.10.06"]
[Round "5"]
[White "DonBroca"]
[Black "ailime26"]
[Result "0-1"]
[WhiteElo "2171"]
[BlackElo "1853"]
[TimeControl "180+1"]
[EndTime "10:57:21 PDT"]
[Termination "ailime26 won on time"]

1. e4 {[%clk 0:03:00.9]} 1... c5 {[%clk 0:02:56.3]} 2. Nf3 {[%clk 0:03:00.9]}
2... Nc6 {[%clk 0:02:50.7]} 3. d4 {[%clk 0:03:00.9]} 3... cxd4 {[%clk
0:02:44.6]} 4. Nxd4 {[%clk 0:03:01.8]} 4... Nf6 {[%clk 0:02:28.2]} 5. Nc3 {[%clk
0:03:00.5]} 5... e5 {[%clk 0:02:21.9]} 6. Ndb5 {[%clk 0:02:45.7]} 6... d6 {[%clk
0:02:17.4]} 7. Be3 {[%clk 0:02:15.2]} 7... a6 {[%clk 0:01:56.3]} 8. Na3 {[%clk
0:02:13.5]} 8... b5 {[%clk 0:01:40.6]} 9. Bxb5 {[%clk 0:01:22.9]} 9... axb5
{[%clk 0:01:34.6]} 10. Naxb5 {[%clk 0:01:23.8]} 10... Be7 {[%clk 0:01:26]} 11.
O-O {[%clk 0:01:07.9]} 11... O-O {[%clk 0:01:16.3]} 12. a4 {[%clk 0:01:05.9]}
12... Ba6 {[%clk 0:01:11.5]} 13. f3 {[%clk 0:00:55.2]} 13... Qa5 {[%clk
0:00:14]} 14. Nd5 {[%clk 0:00:36.5]} 14... Nxd5 {[%clk 0:00:11.2]} 15. Qxd5
{[%clk 0:00:37.4]} 15... Nb4 {[%clk 0:00:10.1]} 16. Qd2 {[%clk 0:00:18.1]} 16...
Bxb5 {[%clk 0:00:06.7]} 17. axb5 {[%clk 0:00:19]} 17... Qxb5 {[%clk 0:00:06.8]}
18. c3 {[%clk 0:00:16.8]} 18... Na6 {[%clk 0:00:03]} 19. Rab1 {[%clk 0:00:13.1]}
19... Nc5 {[%clk 0:00:03.1]} 20. Kh1 {[%clk 0:00:12]} 20... Nb3 {[%clk
0:00:03.1]} 21. Qf2 {[%clk 0:00:11.2]} 21... Rfc8 {[%clk 0:00:03.6]} 22. Rfd1
{[%clk 0:00:10.7]} 22... Qc4 {[%clk 0:00:04.5]} 23. Qg3 {[%clk 0:00:10.1]} 23...
Nc5 {[%clk 0:00:03.5]} 24. Bf2 {[%clk 0:00:09.6]} 24... Ne6 {[%clk 0:00:03.5]}
25. Be3 {[%clk 0:00:08.7]} 25... g6 {[%clk 0:00:03.8]} 26. Qf2 {[%clk
0:00:08.5]} 26... Bf8 {[%clk 0:00:03.8]} 27. Rd2 {[%clk 0:00:08.3]} 27... Ra2
{[%clk 0:00:04]} 28. Rbd1 {[%clk 0:00:08.1]} 28... Qb3 {[%clk 0:00:04.3]} 29. h3
{[%clk 0:00:03.2]} 29... Rca8 {[%clk 0:00:04.6]} 30. Kh2 {[%clk 0:00:03.5]}
30... Ra1 {[%clk 0:00:05.2]} 31. Rxa1 {[%clk 0:00:03]} 31... Rxa1 {[%clk
0:00:06]} 32. Qe2 {[%clk 0:00:01.5]} 32... Rb1 {[%clk 0:00:05.9]} 33. Rc2 {[%clk
0:00:02]} 33... Nc5 {[%clk 0:00:05.8]} 34. Rd2 {[%clk 0:00:02.6]} 34... Na4
{[%clk 0:00:05.1]} 35. Rc2 {[%clk 0:00:02.3]} 35... Nxb2 {[%clk 0:00:04.4]} 36.
Bd2 {[%clk 0:00:01.2]} 36... Nc4 {[%clk 0:00:04.5]} 0-1

[Event "*** SCC Grand Prix: Titled Tuesday Blitz"]
[Site "Chess.com"]
[Date "2020.10.06"]
[Round "5"]
[White "Chamal_Gedgafov"]
[Black "Kotofeyca"]
[Result "1-0"]
[WhiteElo "2164"]
[BlackElo "2339"]
[TimeControl "180+1"]
[EndTime "10:57:23 PDT"]
[Termination "Chamal_Gedgafov won on time"]

1. d4 {[%clk 0:03:00.9]} 1... d5 {[%clk 0:02:58.9]} 2. c4 {[%clk 0:02:58.2]}
2... c6 {[%clk 0:02:59.1]} 3. Nc3 {[%clk 0:02:57.3]} 3... Nf6 {[%clk 0:02:59.2]}
4. Nf3 {[%clk 0:02:57.3]} 4... dxc4 {[%clk 0:02:59.1]} 5. e4 {[%clk 0:02:56.8]}
5... b5 {[%clk 0:02:58.4]} 6. e5 {[%clk 0:02:57.1]} 6... Nd5 {[%clk 0:02:58.1]}
7. a4 {[%clk 0:02:57.6]} 7... a6 {[%clk 0:02:57.1]} 8. axb5 {[%clk 0:02:54.1]}
8... Nxc3 {[%clk 0:02:56.9]} 9. bxc3 {[%clk 0:02:54.7]} 9... cxb5 {[%clk
0:02:57.5]} 10. Ng5 {[%clk 0:02:54.4]} 10... Qd5 {[%clk 0:02:31.6]} 11. Be2
{[%clk 0:02:49.4]} 11... Bb7 {[%clk 0:02:24.2]} 12. Bf3 {[%clk 0:02:43]} 12...
Qd7 {[%clk 0:02:24.2]} 13. e6 {[%clk 0:02:43]} 13... fxe6 {[%clk 0:02:23.9]} 14.
O-O {[%clk 0:02:32.6]} 14... Bd5 {[%clk 0:01:52.3]} 15. Re1 {[%clk 0:02:24.1]}
15... Nc6 {[%clk 0:01:49.8]} 16. Nxe6 {[%clk 0:01:48.1]} 16... Bxe6 {[%clk
0:01:10.3]} 17. d5 {[%clk 0:01:45.1]} 17... Bf5 {[%clk 0:00:46.4]} 18. dxc6
{[%clk 0:01:41.5]} 18... Qxd1 {[%clk 0:00:45.4]} 19. Rxd1 {[%clk 0:01:40.4]}
19... e5 {[%clk 0:00:23.7]} 20. Rd5 {[%clk 0:01:29.8]} 20... Bd3 {[%clk
0:00:19.3]} 21. Rxe5+ {[%clk 0:01:24.1]} 21... Kf7 {[%clk 0:00:18.5]} 22. Rd5
{[%clk 0:01:15.9]} 22... Be7 {[%clk 0:00:17.2]} 23. Bf4 {[%clk 0:01:08.3]} 23...
Rhd8 {[%clk 0:00:14.9]} 24. c7 {[%clk 0:01:05.8]} 24... Rdc8 {[%clk 0:00:12.2]}
25. Bg4 {[%clk 0:01:00.1]} 25... Be4 {[%clk 0:00:08.9]} 26. Rd4 {[%clk
0:00:54.9]} 26... Bb7 {[%clk 0:00:09]} 27. Bxc8 {[%clk 0:00:53.3]} 27... Rxc8
{[%clk 0:00:08.5]} 28. Re1 {[%clk 0:00:49.5]} 28... Bf6 {[%clk 0:00:08.4]} 29.
Be5 {[%clk 0:00:49.5]} 29... Be7 {[%clk 0:00:06.7]} 30. f4 {[%clk 0:00:47.1]}
30... Bc5 {[%clk 0:00:05]} 31. Kf1 {[%clk 0:00:46.2]} 31... Bxd4 {[%clk
0:00:05.1]} 32. cxd4 {[%clk 0:00:46.5]} 32... g6 {[%clk 0:00:05.6]} 33. g4
{[%clk 0:00:45.8]} 33... Ke6 {[%clk 0:00:06]} 34. Kf2 {[%clk 0:00:45.1]} 34...
Kd5 {[%clk 0:00:06.3]} 35. Ke3 {[%clk 0:00:44.3]} 35... c3 {[%clk 0:00:06.6]}
36. Kd3 {[%clk 0:00:42.4]} 36... b4 {[%clk 0:00:07.1]} 37. f5 {[%clk 0:00:41.9]}
37... a5 {[%clk 0:00:06.2]} 38. Ra1 {[%clk 0:00:40.3]} 38... Ba6+ {[%clk
0:00:06]} 39. Kc2 {[%clk 0:00:40.1]} 39... Kc4 {[%clk 0:00:06]} 40. Rxa5 {[%clk
0:00:39]} 40... b3+ {[%clk 0:00:06.9]} 41. Kc1 {[%clk 0:00:39.2]} 41... Bb5
{[%clk 0:00:07.1]} 42. Ra7 {[%clk 0:00:36]} 42... b2+ {[%clk 0:00:07.5]} 43. Kc2
{[%clk 0:00:34.6]} 43... Kb4 {[%clk 0:00:06.7]} 44. d5 {[%clk 0:00:30.7]} 44...
Ba4+ {[%clk 0:00:06]} 45. Rxa4+ {[%clk 0:00:29.7]} 45... Kxa4 {[%clk 0:00:05.4]}
46. d6 {[%clk 0:00:27.3]} 46... Ka3 {[%clk 0:00:04.6]} 47. Bxc3 {[%clk
0:00:27.3]} 1-0

[Event "*** SCC Grand Prix: Titled Tuesday Blitz"]
[Site "Chess.com"]
[Date "2020.10.06"]
[Round "5"]
[White "ChessWarrior7197"]
[Black "sergoy"]
[Result "1-0"]
[WhiteElo "3014"]
[BlackElo "2872"]
[TimeControl "180+1"]
[EndTime "10:57:26 PDT"]
[Termination "ChessWarrior7197 won on time"]

1. e4 {[%clk 0:03:00.9]} 1... c5 {[%clk 0:02:59.2]} 2. Nf3 {[%clk 0:03:01.3]}
2... d6 {[%clk 0:02:59.8]} 3. d4 {[%clk 0:03:01.6]} 3... cxd4 {[%clk 0:03:00.7]}
4. Nxd4 {[%clk 0:03:00.7]} 4... Nf6 {[%clk 0:03:00.9]} 5. Nc3 {[%clk 0:03:00.6]}
5... a6 {[%clk 0:03:01.5]} 6. Be3 {[%clk 0:03:01]} 6... e5 {[%clk 0:03:01.7]} 7.
Nb3 {[%clk 0:03:01.5]} 7... Be7 {[%clk 0:03:01.5]} 8. f3 {[%clk 0:03:00.4]} 8...
Be6 {[%clk 0:03:01.1]} 9. Qd2 {[%clk 0:03:00.8]} 9... Nbd7 {[%clk 0:03:00.9]}
10. O-O-O {[%clk 0:02:58.9]} 10... O-O {[%clk 0:03:00.6]} 11. g4 {[%clk
0:02:58.6]} 11... b5 {[%clk 0:03:01.1]} 12. g5 {[%clk 0:02:58.8]} 12... Nh5
{[%clk 0:03:01.1]} 13. Kb1 {[%clk 0:02:57.5]} 13... Nb6 {[%clk 0:03:01.1]} 14.
Na5 {[%clk 0:02:41.6]} 14... Qc7 {[%clk 0:03:00.5]} 15. Nd5 {[%clk 0:02:16]}
15... Nxd5 {[%clk 0:03:00]} 16. exd5 {[%clk 0:02:16.9]} 16... Bf5 {[%clk
0:03:00.6]} 17. Nc6 {[%clk 0:02:13.9]} 17... f6 {[%clk 0:03:00.8]} 18. gxf6
{[%clk 0:02:05.8]} 18... Bxf6 {[%clk 0:03:01.2]} 19. Bd3 {[%clk 0:02:05.7]}
19... Qd7 {[%clk 0:02:43.1]} 20. Rhg1 {[%clk 0:01:53.1]} 20... Rae8 {[%clk
0:02:41.4]} 21. Be4 {[%clk 0:01:45.7]} 21... Nf4 {[%clk 0:02:28.8]} 22. Rc1
{[%clk 0:01:38.8]} 22... g6 {[%clk 0:02:08.9]} 23. c4 {[%clk 0:01:37.9]} 23...
Kh8 {[%clk 0:01:46.3]} 24. c5 {[%clk 0:01:28.3]} 24... dxc5 {[%clk 0:01:40]} 25.
Bxc5 {[%clk 0:01:28.5]} 25... Rf7 {[%clk 0:01:34.7]} 26. Ka1 {[%clk 0:01:28.3]}
26... Nh3 {[%clk 0:01:15.2]} 27. Rgd1 {[%clk 0:01:20.6]} 27... Ng5 {[%clk
0:01:07.5]} 28. Bxf5 {[%clk 0:01:15.5]} 28... gxf5 {[%clk 0:01:07.4]} 29. Qd3
{[%clk 0:01:02.8]} 29... e4 {[%clk 0:00:56]} 30. fxe4 {[%clk 0:01:03.7]} 30...
fxe4 {[%clk 0:00:56.9]} 31. Qb3 {[%clk 0:01:03.6]} 31... Bg7 {[%clk 0:00:48]}
32. Bd4 {[%clk 0:00:56.6]} 32... Nf3 {[%clk 0:00:41.4]} 33. Bxg7+ {[%clk
0:00:52.2]} 33... Rxg7 {[%clk 0:00:42.3]} 34. Qe3 {[%clk 0:00:52.5]} 34... Nxh2
{[%clk 0:00:37.2]} 35. d6 {[%clk 0:00:44]} 35... Ng4 {[%clk 0:00:36.9]} 36. Qd4
{[%clk 0:00:43.8]} 36... e3 {[%clk 0:00:36.7]} 37. Ne7 {[%clk 0:00:44]} 37...
Rf8 {[%clk 0:00:19.8]} 38. Rf1 {[%clk 0:00:34.5]} 38... Re8 {[%clk 0:00:20]} 39.
Rc7 {[%clk 0:00:29.1]} 39... e2 {[%clk 0:00:14]} 40. Re1 {[%clk 0:00:27.8]}
40... Qe6 {[%clk 0:00:08.7]} 41. d7 {[%clk 0:00:21]} 41... Rd8 {[%clk
0:00:07.9]} 42. Rc8 {[%clk 0:00:21.4]} 42... Qxe7 {[%clk 0:00:07.1]} 43. Rxe2
{[%clk 0:00:22]} 43... Qxd7 {[%clk 0:00:04.2]} 44. Rxd8+ {[%clk 0:00:20]} 1-0

[Event "*** SCC Grand Prix: Titled Tuesday Blitz"]
[Site "Chess.com"]
[Date "2020.10.06"]
[Round "5"]
[White "RobPeresian"]
[Black "Sacbutt"]
[Result "0-1"]
[WhiteElo "2436"]
[BlackElo "2288"]
[TimeControl "180+1"]
[EndTime "10:57:26 PDT"]
[Termination "Sacbutt won by resignation"]

1. Nf3 {[%clk 0:02:58.9]} 1... e6 {[%clk 0:02:54.6]} 2. c4 {[%clk 0:02:57.9]}
2... d5 {[%clk 0:02:54.7]} 3. d4 {[%clk 0:02:57.8]} 3... Nf6 {[%clk 0:02:55]} 4.
Nc3 {[%clk 0:02:58.2]} 4... Be7 {[%clk 0:02:55.5]} 5. Bg5 {[%clk 0:02:55.9]}
5... O-O {[%clk 0:02:55.8]} 6. e3 {[%clk 0:02:55.4]} 6... h6 {[%clk 0:02:56.4]}
7. Bxf6 {[%clk 0:02:54.9]} 7... Bxf6 {[%clk 0:02:57.3]} 8. Qc2 {[%clk
0:02:55.3]} 8... dxc4 {[%clk 0:02:55.9]} 9. Bxc4 {[%clk 0:02:53.9]} 9... b6
{[%clk 0:02:54.1]} 10. O-O {[%clk 0:02:38.3]} 10... Bb7 {[%clk 0:02:53.8]} 11.
Ne4 {[%clk 0:02:38.3]} 11... Nd7 {[%clk 0:02:50.9]} 12. Rfd1 {[%clk 0:02:34.6]}
12... Qe7 {[%clk 0:02:26.7]} 13. Rac1 {[%clk 0:02:27.3]} 13... c5 {[%clk
0:02:21.3]} 14. Nxf6+ {[%clk 0:02:19]} 14... Qxf6 {[%clk 0:02:15.6]} 15. dxc5
{[%clk 0:02:11.1]} 15... Nxc5 {[%clk 0:02:14.4]} 16. Nd4 {[%clk 0:02:09]} 16...
Rac8 {[%clk 0:02:10.4]} 17. Qe2 {[%clk 0:02:07.6]} 17... e5 {[%clk 0:02:03.3]}
18. Nb5 {[%clk 0:02:06.5]} 18... Rfd8 {[%clk 0:01:51.5]} 19. Nxa7 {[%clk
0:02:03.5]} 19... Ra8 {[%clk 0:01:48.6]} 20. Rxd8+ {[%clk 0:01:58.3]} 20... Qxd8
{[%clk 0:01:43.1]} 21. Nb5 {[%clk 0:01:57.8]} 21... Qg5 {[%clk 0:01:42.6]} 22.
f3 {[%clk 0:01:54.2]} 22... h5 {[%clk 0:01:15.7]} 23. Nd6 {[%clk 0:01:53.1]}
23... Rf8 {[%clk 0:01:10.3]} 24. Nxb7 {[%clk 0:01:51]} 24... Nxb7 {[%clk
0:01:09.4]} 25. Rd1 {[%clk 0:01:42.2]} 25... h4 {[%clk 0:01:08.2]} 26. e4 {[%clk
0:01:38.6]} 26... Nc5 {[%clk 0:01:06]} 27. Qd2 {[%clk 0:01:32.8]} 27... Qh5
{[%clk 0:00:59.7]} 28. Qe3 {[%clk 0:01:29.1]} 28... h3 {[%clk 0:00:57.2]} 29. g3
{[%clk 0:01:28.3]} 29... Rc8 {[%clk 0:00:51.6]} 30. b3 {[%clk 0:01:20.5]} 30...
Ra8 {[%clk 0:00:50.4]} 31. a4 {[%clk 0:01:18.3]} 31... Rc8 {[%clk 0:00:48.7]}
32. Rd6 {[%clk 0:01:17.5]} 32... Nxa4 {[%clk 0:00:43.5]} 33. g4 {[%clk
0:01:07.2]} 33... Qh4 {[%clk 0:00:34.8]} 34. Rd7 {[%clk 0:01:05.1]} 34... Rxc4
{[%clk 0:00:28]} 35. bxc4 {[%clk 0:01:04.2]} 35... Nc5 {[%clk 0:00:28]} 36. Rd6
{[%clk 0:00:44.5]} 36... Ne6 {[%clk 0:00:28]} 37. Rxb6 {[%clk 0:00:41.2]} 37...
Nd4 {[%clk 0:00:22.9]} 38. Rb1 {[%clk 0:00:31.9]} 38... Qf6 {[%clk 0:00:16.7]}
39. Rf1 {[%clk 0:00:31.5]} 39... Qa6 {[%clk 0:00:15.3]} 40. Kf2 {[%clk
0:00:25.7]} 40... Qxc4 {[%clk 0:00:14.3]} 41. Kg3 {[%clk 0:00:25.8]} 41... Qxf1
{[%clk 0:00:10]} 42. Qf2 {[%clk 0:00:25.8]} 42... Qxf2+ {[%clk 0:00:09.8]} 43.
Kxf2 {[%clk 0:00:26]} 43... Ne6 {[%clk 0:00:10.7]} 44. Kg3 {[%clk 0:00:26.3]}
44... Nf4 {[%clk 0:00:11.6]} 45. g5 {[%clk 0:00:26.6]} 45... f6 {[%clk
0:00:11.5]} 46. Kg4 {[%clk 0:00:25.5]} 46... Kf7 {[%clk 0:00:10.2]} 47. Kf5
{[%clk 0:00:23.9]} 47... g6+ {[%clk 0:00:10.1]} 48. Kg4 {[%clk 0:00:24.8]} 48...
Ke6 {[%clk 0:00:09.8]} 49. Kh4 {[%clk 0:00:25]} 49... f5 {[%clk 0:00:09.3]} 50.
Kg3 {[%clk 0:00:23.8]} 50... fxe4 {[%clk 0:00:09.4]} 51. fxe4 {[%clk 0:00:24.7]}
51... Kd6 {[%clk 0:00:09.9]} 0-1

[Event "*** SCC Grand Prix: Titled Tuesday Blitz"]
[Site "Chess.com"]
[Date "2020.10.06"]
[Round "5"]
[White "rududuyk"]
[Black "ljuks68"]
[Result "1/2-1/2"]
[WhiteElo "2147"]
[BlackElo "2328"]
[TimeControl "180+1"]
[EndTime "10:57:30 PDT"]
[Termination "Game drawn - insufficient material"]

1. e4 {[%clk 0:03:00.9]} 1... e6 {[%clk 0:02:56.3]} 2. d4 {[%clk 0:03:00.2]}
2... d5 {[%clk 0:02:56.7]} 3. Nd2 {[%clk 0:03:00.7]} 3... Nf6 {[%clk 0:02:54.5]}
4. e5 {[%clk 0:03:00.7]} 4... Nfd7 {[%clk 0:02:54.8]} 5. Bd3 {[%clk 0:03:01.2]}
5... c5 {[%clk 0:02:55.3]} 6. c3 {[%clk 0:03:01.5]} 6... Nc6 {[%clk 0:02:55.8]}
7. Ne2 {[%clk 0:03:02]} 7... cxd4 {[%clk 0:02:56.3]} 8. cxd4 {[%clk 0:03:02.9]}
8... f6 {[%clk 0:02:56.8]} 9. exf6 {[%clk 0:03:03.3]} 9... Qxf6 {[%clk
0:02:57.4]} 10. Nf3 {[%clk 0:02:57.9]} 10... h6 {[%clk 0:02:57.1]} 11. O-O
{[%clk 0:02:53]} 11... Bd6 {[%clk 0:02:56.7]} 12. Ng3 {[%clk 0:02:39.8]} 12...
O-O {[%clk 0:02:55.5]} 13. a3 {[%clk 0:02:35.4]} 13... Rd8 {[%clk 0:02:49]} 14.
Bc2 {[%clk 0:02:24.3]} 14... Nf8 {[%clk 0:02:47.7]} 15. Re1 {[%clk 0:02:18.8]}
15... Bd7 {[%clk 0:02:46.5]} 16. Qd3 {[%clk 0:02:08.2]} 16... Be8 {[%clk
0:02:45.3]} 17. b4 {[%clk 0:02:01.7]} 17... Bg6 {[%clk 0:02:39.8]} 18. Qe2
{[%clk 0:02:01.5]} 18... Bxc2 {[%clk 0:02:25.6]} 19. Qxc2 {[%clk 0:02:02.4]}
19... Nxd4 {[%clk 0:02:25.5]} 20. Nxd4 {[%clk 0:01:59.2]} 20... Qxd4 {[%clk
0:02:25.4]} 21. Bb2 {[%clk 0:01:59]} 21... Qh4 {[%clk 0:02:24.2]} 22. Qc3 {[%clk
0:01:46.9]} 22... Qg5 {[%clk 0:02:14.6]} 23. h4 {[%clk 0:01:43]} 23... Qg4
{[%clk 0:02:12.5]} 24. Nh5 {[%clk 0:01:35.7]} 24... Rd7 {[%clk 0:01:55.6]} 25.
Nf6+ {[%clk 0:00:57.2]} 25... gxf6 {[%clk 0:01:54.4]} 26. Qxf6 {[%clk
0:00:53.7]} 26... Rh7 {[%clk 0:01:42.4]} 27. Rab1 {[%clk 0:00:39.7]} 27... Qf4
{[%clk 0:01:37.4]} 28. Re3 {[%clk 0:00:22.4]} 28... Qxf6 {[%clk 0:01:28.3]} 29.
Bxf6 {[%clk 0:00:21.8]} 29... Rf7 {[%clk 0:01:21.1]} 30. Bd4 {[%clk 0:00:20.4]}
30... b6 {[%clk 0:01:11.8]} 31. g3 {[%clk 0:00:17.7]} 31... Rc8 {[%clk
0:01:11.3]} 32. Rbe1 {[%clk 0:00:15.8]} 32... Rc2 {[%clk 0:01:08.4]} 33. f4
{[%clk 0:00:10.7]} 33... Rfc7 {[%clk 0:00:57]} 34. Bf6 {[%clk 0:00:10.4]} 34...
Rc1 {[%clk 0:00:52.4]} 35. Kg2 {[%clk 0:00:09.8]} 35... Rxe1 {[%clk 0:00:50.6]}
36. Rxe1 {[%clk 0:00:10.7]} 36... Rc3 {[%clk 0:00:50.3]} 37. Bxc3 {[%clk
0:00:10.3]} 37... Kf7 {[%clk 0:00:49.2]} 38. Kf3 {[%clk 0:00:10.8]} 38... h5
{[%clk 0:00:43.8]} 39. g4 {[%clk 0:00:11.3]} 39... hxg4+ {[%clk 0:00:43.4]} 40.
Kxg4 {[%clk 0:00:12.2]} 40... Ng6 {[%clk 0:00:43.2]} 41. h5 {[%clk 0:00:12.4]}
41... Nxf4 {[%clk 0:00:42.6]} 42. Rf1 {[%clk 0:00:13]} 42... e5 {[%clk
0:00:42.7]} 43. Bxe5 {[%clk 0:00:12.5]} 43... Bxe5 {[%clk 0:00:42.8]} 44. Rxf4+
{[%clk 0:00:13.4]} 44... Ke6 {[%clk 0:00:41.5]} 45. Rf5 {[%clk 0:00:13.1]} 45...
Bb2 {[%clk 0:00:39.2]} 46. h6 {[%clk 0:00:13.2]} 46... Bxa3 {[%clk 0:00:36.7]}
47. h7 {[%clk 0:00:13.2]} 47... Bb2 {[%clk 0:00:36.5]} 48. Rh5 {[%clk
0:00:13.8]} 48... Bh8 {[%clk 0:00:34.8]} 49. Rh6+ {[%clk 0:00:13.7]} 49... Ke5
{[%clk 0:00:33.9]} 50. Rg6 {[%clk 0:00:14]} 50... Kd4 {[%clk 0:00:31.6]} 51. Rg8
{[%clk 0:00:14.9]} 51... Be5 {[%clk 0:00:31.4]} 52. h8=Q {[%clk 0:00:15.3]}
52... Bxh8 {[%clk 0:00:31.9]} 53. Rxh8 {[%clk 0:00:16.2]} 53... Kc4 {[%clk
0:00:32]} 54. Kf5 {[%clk 0:00:16.2]} 54... Kxb4 {[%clk 0:00:31.9]} 55. Rh4+
{[%clk 0:00:17.1]} 55... Kb3 {[%clk 0:00:30.3]} 56. Ke5 {[%clk 0:00:17.5]} 56...
a5 {[%clk 0:00:30.2]} 57. Kxd5 {[%clk 0:00:17.7]} 57... a4 {[%clk 0:00:30.3]}
58. Kc6 {[%clk 0:00:17.9]} 58... a3 {[%clk 0:00:30]} 59. Kxb6 {[%clk 0:00:17.9]}
59... a2 {[%clk 0:00:30.2]} 60. Rh1 {[%clk 0:00:17.6]} 60... Kb2 {[%clk
0:00:30.2]} 61. Kb5 {[%clk 0:00:16.9]} 61... a1=Q {[%clk 0:00:30.4]} 62. Rxa1
{[%clk 0:00:17]} 62... Kxa1 {[%clk 0:00:31]} 1/2-1/2

[Event "*** SCC Grand Prix: Titled Tuesday Blitz"]
[Site "Chess.com"]
[Date "2020.10.06"]
[Round "5"]
[White "Fh2411"]
[Black "maxip32"]
[Result "0-1"]
[WhiteElo "2513"]
[BlackElo "2392"]
[TimeControl "180+1"]
[EndTime "10:57:31 PDT"]
[Termination "maxip32 won on time"]

1. d4 {[%clk 0:03:00.9]} 1... Nf6 {[%clk 0:02:59.5]} 2. Nf3 {[%clk 0:02:57.5]}
2... g6 {[%clk 0:02:59.4]} 3. g3 {[%clk 0:02:55.9]} 3... Bg7 {[%clk 0:02:59.7]}
4. Bg2 {[%clk 0:02:44.4]} 4... O-O {[%clk 0:03:00.6]} 5. O-O {[%clk 0:02:44.6]}
5... d6 {[%clk 0:03:01]} 6. c4 {[%clk 0:02:42]} 6... Nbd7 {[%clk 0:03:00.6]} 7.
Nc3 {[%clk 0:02:42]} 7... e5 {[%clk 0:03:00.5]} 8. e4 {[%clk 0:02:42.2]} 8...
exd4 {[%clk 0:03:00.3]} 9. Nxd4 {[%clk 0:02:43.1]} 9... Re8 {[%clk 0:03:00.4]}
10. Re1 {[%clk 0:02:42.5]} 10... Nc5 {[%clk 0:03:00.5]} 11. h3 {[%clk
0:02:38.1]} 11... a5 {[%clk 0:03:00.5]} 12. Bf4 {[%clk 0:02:33.9]} 12... Nh5
{[%clk 0:02:42.1]} 13. Be3 {[%clk 0:02:28.6]} 13... Nf6 {[%clk 0:02:42]} 14. Qc2
{[%clk 0:02:20.8]} 14... Bd7 {[%clk 0:02:42.2]} 15. Rad1 {[%clk 0:02:19.1]}
15... Qc8 {[%clk 0:02:41.2]} 16. Kh2 {[%clk 0:02:15.9]} 16... h5 {[%clk
0:02:41.8]} 17. Bf4 {[%clk 0:01:59.6]} 17... Nh7 {[%clk 0:02:31.2]} 18. h4
{[%clk 0:01:46.9]} 18... Bxd4 {[%clk 0:02:25.9]} 19. Rxd4 {[%clk 0:01:44.4]}
19... Ne6 {[%clk 0:02:26.8]} 20. Rdd1 {[%clk 0:01:24.1]} 20... Nxf4 {[%clk
0:02:26.5]} 21. gxf4 {[%clk 0:01:25]} 21... Bc6 {[%clk 0:02:05.9]} 22. f3 {[%clk
0:01:23.1]} 22... Qd8 {[%clk 0:01:51.6]} 23. Kg3 {[%clk 0:01:21.9]} 23... Qf6
{[%clk 0:01:51]} 24. Qd2 {[%clk 0:01:12.7]} 24... Nf8 {[%clk 0:01:44.2]} 25. Qd4
{[%clk 0:01:12.5]} 25... Qxd4 {[%clk 0:01:20.3]} 26. Rxd4 {[%clk 0:01:11.6]}
26... Ne6 {[%clk 0:01:15]} 27. Rd2 {[%clk 0:01:11.4]} 27... Nc5 {[%clk 0:01:15]}
28. Red1 {[%clk 0:01:05]} 28... Kg7 {[%clk 0:01:05.9]} 29. Bh3 {[%clk
0:00:50.8]} 29... Rab8 {[%clk 0:00:39.9]} 30. Re2 {[%clk 0:00:49.6]} 30... Re7
{[%clk 0:00:34.6]} 31. e5 {[%clk 0:00:45.4]} 31... dxe5 {[%clk 0:00:20.1]} 32.
fxe5 {[%clk 0:00:44.5]} 32... Rbe8 {[%clk 0:00:20.3]} 33. f4 {[%clk 0:00:36.2]}
33... f6 {[%clk 0:00:20.6]} 34. exf6+ {[%clk 0:00:22]} 34... Kxf6 {[%clk
0:00:21.5]} 35. Rxe7 {[%clk 0:00:19.3]} 35... Rxe7 {[%clk 0:00:22.4]} 36. Nd5+
{[%clk 0:00:18.8]} 36... Bxd5 {[%clk 0:00:22.2]} 37. Rxd5 {[%clk 0:00:19.7]}
37... b6 {[%clk 0:00:21.6]} 38. Rd2 {[%clk 0:00:19.1]} 38... Re3+ {[%clk
0:00:21.4]} 39. Kg2 {[%clk 0:00:18.8]} 39... Re4 {[%clk 0:00:18.6]} 40. Kf3
{[%clk 0:00:17.8]} 40... Rxc4 {[%clk 0:00:18.2]} 41. Bf1 {[%clk 0:00:16.2]}
41... Re4 {[%clk 0:00:16.1]} 42. Bb5 {[%clk 0:00:09.3]} 42... Re1 {[%clk
0:00:12.7]} 43. b3 {[%clk 0:00:05.4]} 43... Rh1 {[%clk 0:00:12]} 44. Rd8 {[%clk
0:00:01.7]} 44... Rxh4 {[%clk 0:00:11.3]} 45. Rf8+ {[%clk 0:00:01.3]} 45... Ke7
{[%clk 0:00:11]} 46. Rg8 {[%clk 0:00:01.4]} 46... Rg4 {[%clk 0:00:11.1]} 0-1